bitfinex/quotes_ETHUSD_20240614
["timestamp","ask_amount","ask_price","bid_price","bid_amount"]
[1718391101612,0.04704585,3385.4,3385.2,5.35187265]
[1718391101764,2.95361,3385.7,3385.3,2.95394]
[1718391101960,2.95353,3385.8,3385.3,2.95394]
[1718391102157,2.95344,3385.9,3385.4,2.95384]
[1718391102597,2.136,3386.0,3385.6,2.95367]
[1718391102959,2.136,3386.0,3385.5,1.43344514]
[1718391102960,0.05414076,3385.9,3385.5,1.43344514]
[1718391103106,0.05414076,3385.9,3385.5,4.38720514]
[1718391103401,0.05414076,3385.9,3385.5,1.43344514]
[1718391104002,3.00756076,3385.9,3385.5,1.43344514]
[1718391106300,3.00756076,3385.9,3385.0,5.2565]
[1718391106301,3.00761076,3385.9,3385.0,5.2565]
[1718391106627,2.95393,3385.4,3385.0,1.43344514]
[1718391107177,2.9538,3385.5,3385.0,4.38764514]
[1718391107613,2.9538,3385.5,3385.1,2.95411]
[1718391108638,3.00800076,3385.4,3385.0,2.40218765]
[1718391108783,3.00800076,3385.4,3385.0,1.43344514]
[1718391108979,2.95386,3385.4,3385.0,1.43344514]
[1718391109209,2.95369,3385.6,3385.1,2.9541]
[1718391109411,0.05414076,3385.5,3385.1,2.9541]
[1718391110083,3.00791076,3385.5,3385.1,2.9541]
[1718391110315,0.04708316,3385.4,3385.1,2.9541]
[1718391111013,0.10122392,3385.4,3385.1,2.9541]
[1718391111425,0.10122392,3385.4,3385.0,4.38762514]
[1718391112907,0.10122392,3385.4,3384.9,2.95429]
[1718391112908,2.95396,3385.3,3384.9,2.95429]
[1718391113219,0.04529291,3385.2,3384.9,4.38773514]
[1718391113390,3.05352367,3385.2,3384.7,5.29986]
[1718391113596,3.00823076,3385.2,3384.8,1.43344514]
[1718391113796,0.04525535,3385.1,3384.8,1.43344514]
[1718391113990,0.09939611,3385.1,3384.8,1.43344514]
[1718391115015,0.04525535,3385.1,3384.8,1.43344514]
[1718391115217,0.04525535,3385.1,3384.8,2.16769065]
[1718391115592,0.04525535,3385.1,3384.9,2.95429]
[1718391116027,2.95396,3385.3,3384.9,2.95429]
[1718391116226,0.04580626,3385.0,3384.9,2.95429]
[1718391116424,2.95388,3385.4,3384.9,2.95429]
[1718391116616,0.04521779,3385.0,3384.9,3.65248365]
[1718391116815,2.95388,3385.4,3384.9,3.65248365]
[1718391117331,0.04530673,3385.3,3384.9,3.65248365]
[1718391117535,0.09944749,3385.3,3384.9,3.65248365]
[1718391118843,0.05414076,3385.2,3384.9,0.69819365]
[1718391119137,0.04523162,3385.1,3384.9,2.95427]
[1718391119547,0.04523162,3385.1,3385.0,2.9542]
[1718391119900,0.05414076,3385.3,3385.0,2.9542]
[1718391120100,0.04606519,3385.2,3385.0,2.9542]
[1718391120300,0.05414076,3385.3,3385.0,2.9542]
[1718391120537,3.00810076,3385.3,3384.9,2.95427]
[1718391120751,0.09940994,3385.2,3384.8,4.38780514]
[1718391121242,0.09940994,3385.2,3383.9,5.39212864]
[1718391121243,2.95428,3385.0,3384.3,2.95481]
[1718391121531,2.9544,3384.8,3384.3,4.38823514]
[1718391121759,0.09991701,3384.7,3384.3,4.38823514]
[1718391123355,3.05438701,3384.7,3384.3,4.38823514]
[1718391124050,3.05438701,3384.7,3384.3,1.43344514]
[1718391124622,2.95473,3384.4,3383.9,2.95514]
[1718391124822,2.95473,3384.4,3384.0,5.64983914]
[1718391125024,3.05368154,3384.3,3384.0,2.69477914]
[1718391125481,0.09886154,3384.3,3384.0,2.69477914]
[1718391125660,0.04472078,3384.3,3384.0,5.64984914]
[1718391125826,0.04472078,3384.3,3384.1,0.86050991]
[1718391126161,2.95466,3384.5,3384.1,0.86050991]
[1718391126162,0.04538318,3384.2,3384.1,0.86050991]
[1718391126471,0.04538318,3384.2,3384.0,1.43344514]
[1718391126619,2.95475,3384.4,3384.0,1.43344514]
[1718391126820,0.04464562,3384.1,3384.0,1.43344514]
[1718391127035,2.95454,3384.7,3384.2,2.95483]
[1718391127263,2.95454,3384.7,3384.2,4.38827514]
[1718391127643,2.9544,3384.8,3384.3,3.68914351]
[1718391127835,4.18514614,3385.0,3384.4,4.38815514]
[1718391128039,4.18507614,3385.1,3384.5,2.95458]
[1718391128236,2.136,3385.2,3384.6,1.43344514]
[1718391128437,0.05414076,3385.1,3384.6,4.38797514]
[1718391128641,2.95427,3385.0,3384.3,0.73433351]
[1718391128856,2.9545,3384.7,3384.2,2.95488]
[1718391129028,2.9545,3384.7,3384.2,4.38832514]
[1718391129226,2.9545,3384.7,3384.2,1.43344514]
[1718391129436,2.95438,3384.8,3384.4,2.95472]
[1718391130157,2.136,3385.1,3384.7,2.95447]
[1718391130357,2.136,3385.1,3384.5,1.43344514]
[1718391130547,0.05414076,3385.0,3384.6,0.43882351]
[1718391130869,3.00835076,3385.0,3384.6,1.43344514]
[1718391131432,1.23093614,3385.3,3384.6,1.43344514]
[1718391131433,2.95396,3385.3,3384.6,1.43344514]
[1718391131638,0.05414076,3385.2,3384.7,2.2564]
[1718391132037,2.136,3385.5,3384.7,2.2564]
[1718391132038,1.23093614,3385.5,3384.8,1.43344514]
[1718391132257,2.95379,3385.5,3384.8,1.80242965]
[1718391132569,2.95379,3385.5,3384.9,2.95423]
[1718391132744,2.95379,3385.5,3384.9,4.38767514]
[1718391134245,1.23093614,3385.7,3385.3,2.95394]
[1718391134448,1.23093614,3385.9,3385.6,2.95365]
[1718391134664,1.54587479,3386.1,3385.4,1.72883914]
[1718391134665,1.23093614,3386.1,3386.0,2.95333]
[1718391134984,4.49875479,3386.6,3385.9,2.95335]
[1718391135133,0.05414076,3386.5,3385.9,4.38679514]
[1718391135336,0.05414076,3386.5,3386.0,2.95328]
[1718391135737,3.00705076,3386.5,3386.0,2.95328]
[1718391137579,2.95299,3386.4,3385.9,4.38685514]
[1718391137762,0.05414076,3386.3,3385.9,1.43344514]
[1718391137960,3.00724076,3386.3,3385.9,1.43344514]
[1718391138769,2.9531,3386.3,3385.9,1.43344514]
[1718391138970,5.90588,3386.5,3385.9,1.43344514]
[1718391139177,0.05414076,3386.4,3385.9,1.43344514]
[1718391140054,2.95308,3386.3,3385.9,1.43344514]
[1718391140383,0.04532238,3386.2,3385.9,1.43344514]
[1718391140808,2.95308,3386.3,3385.9,1.43344514]
[1718391140971,0.04528485,3386.1,3385.9,1.43344514]
[1718391141169,2.95308,3386.3,3385.9,1.43344514]
[1718391141393,0.04524731,3386.0,3385.9,1.43344514]
[1718391141708,2.95308,3386.3,3385.9,2.16749465]
[1718391142160,0.04532238,3386.2,3385.9,2.16749465]
[1718391142360,2.95308,3386.3,3385.9,2.16749465]
[1718391142601,0.04528485,3386.1,3385.9,2.16749465]
[1718391142761,2.95308,3386.3,3385.9,2.16749465]
[1718391142969,0.04532238,3386.2,3385.9,2.16749465]
[1718391143361,2.95308,3386.3,3385.9,2.16749465]
[1718391143564,0.04613003,3386.2,3385.9,1.43344514]
[1718391144001,0.04613003,3386.2,3385.5,0.55]
[1718391144002,3.51843614,3386.9,3386.0,1.43344514]
[1718391144175,0.04559008,3386.1,3386.0,12.60930055]
[1718391144381,3.0,3387.1,3386.5,2.95288]
[1718391144382,2.95244,3387.1,3386.5,2.95288]
[1718391144676,2.95244,3387.1,3386.6,1.43344514]
[1718391144867,0.04430882,3387.0,3386.6,1.43344514]
[1718391145202,0.04430882,3387.0,3386.7,2.9527]
[1718391145498,0.04430882,3387.0,3386.6,4.38624514]
[1718391145660,2.95246,3387.0,3386.6,1.43344514]
[1718391145861,0.04321724,3386.9,3386.6,1.43344514]
[1718391148187,0.04321724,3386.9,3386.6,4.38625514]
[1718391148384,0.04321724,3386.9,3386.8,2.95263]
[1718391148593,0.04321724,3386.9,3386.8,7.33870514]
[1718391148793,2.95201,3387.6,3387.1,2.95236]
[1718391148998,2.95201,3387.6,3387.1,1.43344514]
[1718391149185,2.99547232,3387.5,3387.1,1.43344514]
[1718391149727,2.99547232,3387.5,3387.1,4.38581514]
[1718391150690,2.95212,3387.4,3387.1,1.43344514]
[1718391151119,0.04440276,3387.3,3387.1,1.43344514]
[1718391151311,0.04440276,3387.3,3387.1,2.16729665]
[1718391151499,2.95263,3386.8,3386.7,0.55]
[1718391151717,0.04332979,3387.2,3386.8,2.9526]
[1718391151917,3.00626076,3387.4,3387.0,2.95245]
[1718391152116,3.00626076,3387.4,3387.0,1.43344514]
[1718391152790,3.00626076,3387.4,3386.7,2.3581]
[1718391152791,2.95226,3387.3,3386.7,5.31082]
[1718391153115,3.00645076,3387.2,3386.8,1.43344514]
[1718391153693,0.05414076,3387.2,3386.8,4.38607514]
[1718391153941,2.95221,3387.3,3386.8,4.38607514]
[1718391155639,0.04372441,3387.2,3386.8,4.38607514]
[1718391155934,2.95221,3387.3,3386.9,2.95253]
[1718391156241,2.95213,3387.4,3386.9,2.95253]
[1718391156435,0.04509653,3387.2,3386.9,2.95253]
[1718391156734,3.00634076,3387.3,3386.8,4.38606514]
[1718391156908,0.04400501,3387.1,3386.8,4.38606514]
[1718391157109,0.04404252,3387.2,3386.9,2.95253]
[1718391157425,0.04493568,3387.1,3387.0,2.95245]
[1718391157736,2.95195,3387.6,3386.9,2.95249]
[1718391157898,0.0440084,3387.1,3387.0,2.95246]
[1718391158098,3.00624076,3387.5,3387.0,2.95246]
[1718391158299,0.0440084,3387.1,3387.0,2.95246]
[1718391158530,3.00624076,3387.5,3387.0,4.13950713]
[1718391158735,0.0449849,3387.1,3387.0,2.95246]
[1718391158920,3.00624076,3387.5,3387.0,2.95246]
[1718391159123,0.0440084,3387.1,3387.0,2.95246]
[1718391159348,3.00624076,3387.5,3387.0,2.95246]
[1718391159824,2.99720952,3387.4,3386.9,2.95252]
[1718391160012,0.05414076,3387.3,3386.9,2.95252]
[1718391160215,0.04409021,3387.3,3386.9,2.95252]
[1718391161044,3.05045097,3387.3,3386.9,2.95252]
[1718391161430,0.09823097,3387.3,3386.9,2.95252]
[1718391162206,0.04409021,3387.3,3386.9,2.95252]
[1718391162741,0.09823097,3387.3,3386.9,2.95252]
[1718391163735,3.05043097,3387.3,3386.9,2.95252]
[1718391164566,2.99629021,3387.3,3386.9,2.95252]
[1718391165360,0.04409021,3387.3,3386.9,4.21747351]
[1718391167169,0.04409021,3387.3,3386.9,2.95252]
[1718391167372,0.09823097,3387.3,3386.9,2.95252]
[1718391168961,3.05044097,3387.3,3386.9,2.95252]
[1718391169157,0.04409021,3387.3,3386.9,2.95252]
[1718391169461,0.04409021,3387.3,3386.7,2.3581]
[1718391169462,0.04409021,3387.3,3387.2,8.85687]
[1718391169670,3.48697491,3389.2,3387.3,2.3976]
[1718391169671,2.95119,3388.5,3387.3,2.3976]
[1718391169866,1.41778757,3388.6,3387.9,2.95161]
[1718391169867,2.95114,3388.6,3387.9,2.95161]
[1718391170165,2.95124,3388.4,3387.9,1.43344514]
[1718391170338,2.95094,3388.8,3388.0,0.73370351]
[1718391170339,2.95117,3388.5,3388.0,0.73370351]
[1718391170525,0.04077774,3388.3,3388.1,2.95148]
[1718391171053,2.95099,3388.7,3388.2,2.9514]
[1718391171452,2.95099,3388.7,3388.0,6.08288351]
[1718391171453,2.95099,3388.7,3388.1,2.95149]
[1718391171657,0.05414076,3388.6,3388.1,2.95149]
[1718391171870,0.05414076,3388.6,3388.1,4.29344087]
[1718391172061,3.00521076,3388.6,3388.1,4.29344087]
[1718391172244,5.08682,3388.9,3388.2,4.38485514]
[1718391172439,0.05414076,3388.8,3388.4,2.95121]
[1718391172648,3.00504076,3388.8,3388.3,2.95132]
[1718391173831,0.05414076,3388.7,3388.3,2.95132]
[1718391174479,0.05414076,3388.7,3388.2,4.38485514]
[1718391174637,3.00514076,3388.7,3388.2,5.41623035]
[1718391175339,2.95107,3388.6,3388.2,2.46482035]
[1718391176340,3.0,3389.4,3388.4,2.95124]
[1718391176547,0.05414076,3389.3,3388.5,1.49246137]
[1718391176750,0.05414076,3389.3,3388.6,0.49937014]
[1718391176997,0.05414076,3389.3,3388.7,1.43344514]
[1718391177281,0.03845219,3389.2,3388.7,1.43344514]
[1718391177490,0.03845219,3389.2,3388.3,2.95126]
[1718391177491,2.95082,3388.9,3388.3,2.95126]
[1718391177784,0.05414076,3388.8,3388.4,4.30033542]
[1718391178301,3.00504076,3388.8,3388.4,2.86689028]
[1718391178502,3.00514076,3388.7,3388.4,2.86689028]
[1718391178670,3.04435095,3388.7,3388.2,3.98276521]
[1718391178872,3.04435095,3388.7,3388.3,1.43344514]
[1718391179083,3.00514076,3388.7,3388.3,1.43344514]
[1718391180296,0.05414076,3388.7,3388.2,1.03137521]
[1718391180487,2.99025543,3388.6,3388.3,0.63805552]
[1718391181693,0.03918543,3388.6,3388.3,0.63805552]
[1718391182103,0.03918543,3388.6,3388.3,5.02281066]
[1718391182417,0.03918543,3388.6,3388.4,4.38466514]
[1718391182619,0.03918543,3388.6,3388.3,0.63805552]
[1718391182780,2.98942088,3388.5,3388.0,5.34918]
[1718391182980,2.98942088,3388.5,3388.1,1.43344514]
[1718391183516,3.00546076,3388.4,3387.9,2.95167]
[1718391183700,2.98942088,3388.5,3388.0,4.38502514]
[1718391184081,0.03825088,3388.5,3388.1,2.95149]
[1718391184409,0.03825088,3388.5,3388.3,2.95126]
[1718391184612,0.03825088,3388.5,3388.3,1.43344514]
[1718391184825,0.05414076,3388.5,3387.9,2.95161]
[1718391185029,2.98946237,3388.4,3388.0,4.38502514]
[1718391185682,2.98946237,3388.4,3388.0,1.43344514]
[1718391185683,2.95134,3388.3,3388.0,1.43344514]
[1718391185885,2.99027407,3388.3,3388.0,1.43344514]
[1718391186084,0.03893407,3388.3,3388.0,1.43344514]
[1718391186315,0.03893407,3388.3,3388.0,4.38503514]
[1718391186494,0.03893407,3388.3,3388.0,5.11871365]
[1718391186831,0.03893407,3388.3,3388.0,2.16712365]
[1718391187716,2.99027407,3388.3,3388.0,2.16712365]
[1718391188031,2.99027407,3388.3,3388.0,1.43344514]
[1718391188238,0.03893407,3388.3,3388.0,1.43344514]
[1718391188409,0.03893407,3388.3,3388.1,2.9515]
[1718391188615,0.03893407,3388.3,3388.0,4.38501514]
[1718391188812,2.95125,3388.4,3388.0,1.43344514]
[1718391188982,2.95125,3388.4,3387.5,2.95198]
[1718391188983,0.03812822,3388.2,3387.1,9.6786]
[1718391189182,2.95192,3387.7,3387.2,4.30033542]
[1718391189426,2.95183,3387.8,3387.2,1.43344514]
[1718391189628,0.03837445,3387.6,3387.3,2.95219]
[1718391189792,2.9516,3388.0,3387.4,2.95211]
[1718391190137,0.03799201,3387.9,3387.6,2.95192]
[1718391190336,0.03799201,3387.9,3387.7,1.43344514]
[1718391190644,0.03799201,3387.9,3387.7,1.87198165]
[1718391190841,0.05414076,3388.1,3387.7,1.43344514]
[1718391190996,0.03780194,3387.8,3387.7,1.43344514]
[1718391191315,2.95132,3388.4,3387.7,4.38529514]
[1718391191316,2.95137,3388.3,3387.7,4.38529514]
[1718391191622,0.03780194,3387.8,3387.7,4.38529514]
[1718391191793,2.95135,3388.3,3387.8,2.95175]
[1718391191992,0.03797229,3388.2,3387.9,1.43344514]
[1718391192213,2.98939229,3388.2,3387.9,1.43344514]
[1718391192419,2.95142,3388.2,3387.9,1.43344514]
[1718391192621,0.0379348,3388.1,3387.9,1.43344514]
[1718391193731,0.0379348,3388.1,3387.9,1.87198165]
[1718391194091,2.95143,3388.2,3387.9,1.87198165]
[1718391194290,0.03791764,3388.0,3387.9,1.43344514]
[1718391194529,2.95143,3388.2,3387.9,1.43344514]
[1718391194887,0.03795513,3388.1,3387.9,1.43344514]
[1718391196037,2.95134,3388.3,3387.9,4.38511514]
[1718391196206,0.03791764,3388.0,3387.9,4.38511514]
[1718391196543,3.00564076,3388.2,3387.6,2.95194]
[1718391196697,2.95183,3387.8,3387.3,2.95218]
[1718391196910,0.889,3387.5,3387.4,1.43344514]
[1718391197335,0.9266013,3387.5,3387.4,1.43344514]
[1718391197655,0.0376013,3387.5,3387.4,7.25244542]
[1718391197948,2.95152,3388.1,3387.6,2.95192]
[1718391197949,0.889,3387.7,3387.6,2.95192]
[1718391198112,0.889,3387.7,3387.5,2.952]
[1718391198455,0.889,3387.7,3387.5,4.38544514]
[1718391198613,0.889,3387.7,3387.5,1.43344514]
[1718391198817,2.95196,3387.6,3387.4,2.86689028]
[1718391199045,0.0376013,3387.5,3387.2,2.95228]
[1718391199210,0.0376013,3387.5,3387.3,1.43344514]
[1718391199414,2.95187,3387.7,3387.3,4.38564514]
[1718391199614,2.95152,3388.1,3387.5,2.95202]
[1718391199852,2.95152,3388.1,3387.6,2.2506]
[1718391200061,2.99020196,3388.0,3387.5,1.43344514]
[1718391200238,2.99020196,3388.0,3387.6,2.95191]
[1718391200416,2.99020196,3388.0,3387.5,4.38544514]
[1718391200615,2.95179,3387.8,3387.5,1.43344514]
[1718391200924,0.03757117,3387.7,3387.5,1.43344514]
[1718391201140,2.95168,3387.9,3387.5,1.43344514]
[1718391201317,0.03753367,3387.6,3387.5,1.43344514]
[1718391201641,2.95168,3387.9,3387.5,5.41445465]
[1718391201840,0.03752135,3387.6,3387.5,4.38546514]
[1718391202252,2.95168,3387.9,3387.5,4.38546514]
[1718391202451,5.08646,3388.2,3387.5,4.38546514]
[1718391202452,0.03752135,3387.6,3387.5,4.38546514]
[1718391202850,2.95161,3388.0,3387.6,2.95192]
[1718391203354,2.135,3388.3,3387.7,5.11902365]
[1718391203547,4.18205614,3388.6,3388.0,2.95158]
[1718391203548,2.95112,3388.6,3388.0,2.95158]
[1718391203871,3.00531076,3388.5,3388.0,2.95158]
[1718391204535,0.05414076,3388.5,3388.1,2.95148]
[1718391205480,3.36593614,3389.0,3388.3,2.95132]
[1718391205622,3.36593614,3389.0,3388.4,2.95118]
[1718391205623,3.00495076,3388.9,3388.4,2.95118]
[1718391206324,2.9509,3388.8,3388.3,4.38475514]
[1718391207023,0.05414076,3388.7,3388.3,4.38475514]
[1718391207452,0.05414076,3388.7,3387.8,2.95172]
[1718391207453,2.95133,3388.3,3387.8,2.95172]
[1718391207723,2.95117,3388.5,3388.0,2.95151]
[1718391208534,2.95124,3388.4,3388.0,2.95151]
[1718391211541,2.95107,3388.6,3388.2,2.95141]
[1718391211833,2.95093,3388.8,3388.3,4.38469514]
[1718391212050,2.95083,3388.9,3388.4,2.95123]
[1718391213434,6.31656614,3389.1,3388.5,4.38458514]
[1718391213629,6.31656614,3389.1,3388.6,2.95103]
[1718391213832,0.05414076,3389.0,3388.6,4.38447514]
[1718391214236,6.31656614,3389.1,3388.6,4.38447514]
[1718391214628,1.23093614,3389.0,3388.6,4.38447514]
[1718391214826,6.31656614,3389.1,3388.6,5.44882181]
[1718391215077,0.05414076,3389.0,3388.6,5.44882181]
[1718391215385,4.2358069,3389.0,3388.6,5.44882181]
[1718391215529,0.0391914,3388.9,3388.6,5.44882181]
[1718391217882,0.0391914,3388.9,3388.7,4.38434514]
[1718391218078,2.95063,3389.1,3388.8,0.83997518]
[1718391218365,0.03947318,3388.8,3388.7,4.38434514]
[1718391218668,2.95063,3389.1,3388.7,4.38434514]
[1718391218842,0.0393749,3388.8,3388.7,4.38434514]
[1718391219039,2.95057,3389.2,3388.7,4.38434514]
[1718391219363,1.23122027,3395.2,3389.3,2.95037]
[1718391219364,1.23093614,3389.6,3389.3,2.95037]
[1718391219574,11.80519693,3389.8,3389.3,2.95037]
[1718391219575,2.95009,3389.8,3389.3,2.95037]
[1718391220077,2.95013,3389.7,3389.3,2.95037]
[1718391220245,2.9504,3389.4,3389.0,2.95072]
[1718391220652,2.95021,3389.6,3389.0,2.95064]
[1718391220854,3.00450076,3389.5,3389.0,2.95064]
[1718391221143,0.889,3389.2,3389.0,2.95064]
[1718391221343,0.889,3389.2,3388.9,2.95079]
[1718391221543,0.889,3389.2,3388.9,5.83248084]
[1718391222093,0.889,3389.2,3388.9,2.88169084]
[1718391222382,0.889,3389.0,3388.9,2.88169084]
[1718391222953,0.889,3389.0,3388.9,5.83249084]
[1718391223154,0.889,3389.0,3388.9,2.88169084]
[1718391224042,0.889,3389.0,3388.6,1.06434667]
[1718391224262,0.889,3388.7,3388.6,1.43344514]
[1718391226465,0.889,3388.7,3388.3,5.35921]
[1718391226466,0.889,3388.7,3388.3,5.35923]
[1718391226671,0.889,3388.7,3388.4,4.38466514]
[1718391227446,3.83982,3388.9,3388.5,2.95114]
[1718391227672,0.889,3388.9,3388.5,4.38458514]
[1718391227983,0.03798777,3388.8,3388.5,4.38458514]
[1718391228145,0.03798777,3388.8,3388.5,7.25147542]
[1718391228344,0.889,3388.9,3388.5,7.25147542]
[1718391228569,0.03795031,3388.7,3388.5,7.25147542]
[1718391228769,0.889,3388.9,3388.5,7.25147542]
[1718391229083,0.03799297,3388.8,3388.6,2.95106]
[1718391229491,2.95064,3389.1,3388.5,7.25148542]
[1718391229697,0.889,3388.9,3388.6,2.95105]
[1718391230208,0.03724653,3388.8,3388.7,4.38440514]
[1718391230847,0.03724653,3388.8,3388.7,1.43344514]
[1718391231393,0.03724653,3388.8,3388.7,4.38442514]
[1718391232248,0.03724653,3388.8,3388.7,7.33540514]
[1718391232451,0.889,3389.2,3388.8,2.95083]
[1718391232681,0.03610786,3389.1,3388.9,1.43344514]
[1718391233152,0.92510786,3389.1,3388.9,4.38423514]
[1718391233483,0.92510786,3389.1,3388.7,3.97957151]
[1718391233665,0.92510786,3389.1,3388.8,1.43344514]
[1718391233978,0.889,3388.9,3388.8,1.43344514]
[1718391234357,0.92504985,3388.9,3388.8,1.43344514]
[1718391234885,0.92504985,3388.9,3388.4,2.95118]
[1718391235050,0.92504985,3388.9,3388.4,1.43344514]
[1718391235051,0.889,3388.5,3388.4,1.43344514]
[1718391235248,0.92489993,3388.5,3388.4,1.43344514]
[1718391235848,0.03589993,3388.5,3388.4,4.38468514]
[1718391237944,0.03589993,3388.5,3388.4,7.33592514]
[1718391238152,0.889,3388.7,3388.6,2.95107]
[1718391238692,0.889,3388.7,3388.5,2.95113]
[1718391238845,0.889,3388.7,3388.6,2.95107]
[1718391239288,2.95063,3389.1,3388.6,2.95107]
[1718391239611,1.23093614,3389.5,3388.7,4.38442514]
[1718391239765,0.889,3388.9,3388.7,4.38442514]
[1718391239966,0.889,3389.1,3388.7,5.48505591]
[1718391240176,0.889,3389.1,3388.8,2.95083]
[1718391240482,0.889,3389.1,3388.9,4.38424514]
[1718391241043,0.889,3389.1,3388.9,1.43344514]
[1718391241293,0.05414076,3389.0,3388.5,5.29313]
[1718391241499,0.889,3388.7,3388.6,1.43344514]
[1718391241796,0.889,3388.7,3388.5,2.95113]
[1718391241954,0.889,3388.7,3388.4,2.95122]
[1718391242154,0.889,3388.7,3388.4,4.38466514]
[1718391242995,0.889,3388.7,3388.5,2.95109]
[1718391244423,2.95064,3389.1,3388.6,4.38451514]
[1718391244567,0.889,3388.9,3388.6,1.43344514]
[1718391244774,0.889,3388.9,3388.6,4.38448514]
[1718391244951,2.95042,3389.4,3388.8,2.95089]
[1718391245155,0.889,3389.3,3388.9,1.43344514]
[1718391245405,0.92535312,3389.3,3388.9,1.43344514]
[1718391245956,0.03635312,3389.3,3388.9,1.43344514]
[1718391246271,2.94991,3390.0,3389.3,2.4274]
[1718391246272,1.23093614,3389.9,3389.3,2.4274]
[1718391246468,3.01392726,3390.9,3390.2,2.94967]
[1718391246469,1.23093614,3390.4,3390.2,2.94967]
[1718391246788,4.36642445,3390.7,3390.3,2.94951]
[1718391246789,1.23093614,3390.7,3390.3,2.94951]
[1718391247000,0.889,3390.5,3390.3,4.38301514]
[1718391247183,1.23093614,3390.6,3390.3,4.38301514]
[1718391247407,0.889,3390.6,3390.3,4.38301514]
[1718391247553,0.859,3390.6,3390.3,1.43344514]
[1718391247758,0.889,3390.5,3390.3,4.38300514]
[1718391248063,0.889,3390.5,3390.3,1.43344514]
[1718391248372,3.89257076,3390.5,3390.1,2.94975]
[1718391248571,0.889,3390.3,3390.1,2.94975]
[1718391248962,0.05414076,3390.5,3390.1,2.94975]
[1718391249384,2.94934,3390.6,3390.1,2.94975]
[1718391249780,2.94942,3390.5,3390.1,2.94975]
[1718391249973,2.94935,3390.6,3390.1,2.94975]
[1718391252322,0.05414076,3390.5,3390.1,2.91975]
[1718391252656,3.00358076,3390.5,3390.1,2.91975]
[1718391253248,3.00358076,3390.5,3390.1,2.77175]
[1718391253401,3.00358076,3390.5,3390.0,2.94985]
[1718391253576,3.00358076,3390.5,3390.0,4.38329514]
[1718391254163,3.00358076,3390.5,3390.0,1.43344514]
[1718391254164,2.94951,3390.4,3390.0,1.43344514]
[1718391254358,2.94985,3390.0,3389.4,2.95036]
[1718391254657,2.94985,3390.0,3388.9,2.06408969]
[1718391254658,2.95044,3389.4,3388.9,2.95073]
[1718391254900,2.95056,3389.2,3388.9,1.43344514]
[1718391255704,5.90119,3389.2,3388.9,1.43344514]
[1718391255888,2.95097,3388.8,3388.3,2.95132]
[1718391256093,2.95097,3388.8,3388.4,0.590281]
[1718391256275,2.95099,3388.7,3388.3,1.43344514]
[1718391258229,1.23093614,3389.6,3388.4,1.43344514]
[1718391258230,2.95044,3389.4,3388.4,1.43344514]
[1718391258399,0.05414076,3389.3,3388.4,1.43344514]
[1718391258604,3.00460076,3389.3,3388.8,2.95089]
[1718391258910,3.00460076,3389.3,3388.8,4.38433514]
[1718391259112,2.95029,3389.5,3388.9,1.43344514]
[1718391259318,2.131,3389.7,3389.1,2.95062]
[1718391259525,2.95011,3389.7,3389.2,4.38397514]
[1718391260287,0.03275003,3389.6,3389.2,4.38397514]
[1718391260619,2.95053,3389.3,3388.8,3.92512051]
[1718391260825,2.95065,3389.1,3388.8,1.43344514]
[1718391261319,0.03254217,3389.0,3388.8,1.43344514]
[1718391262617,2.95064,3389.1,3388.8,1.43344514]
[1718391262818,0.03324257,3388.9,3388.8,1.43344514]
[1718391263025,2.95055,3389.2,3388.8,1.43344514]
[1718391263489,0.03251187,3389.1,3388.8,1.43344514]
[1718391263899,3.03729263,3389.1,3388.8,1.43344514]
[1718391264100,2.95085,3388.9,3388.3,5.42231]
[1718391264421,2.95085,3388.9,3388.4,4.43344514]
[1718391264585,3.03740632,3388.8,3388.4,4.43344514]
[1718391264790,3.03740632,3388.8,3388.4,1.43344514]
[1718391265325,0.03236556,3388.8,3388.4,4.38467514]
[1718391265501,2.95073,3389.0,3388.5,3.0]
[1718391265711,0.0323099,3388.7,3388.5,6.98961751]
[1718391266019,0.05414076,3389.0,3388.5,6.98961751]
[1718391266219,0.03227242,3388.6,3388.5,6.98961751]
[1718391266392,0.05414076,3389.0,3388.5,6.98961751]
[1718391266706,0.05414076,3389.0,3388.3,2.95132]
[1718391266707,2.95083,3388.9,3388.3,2.95132]
[1718391266899,0.03238485,3388.9,3388.4,3.0]
[1718391267089,0.03238485,3388.9,3388.6,2.95104]
[1718391267289,2.95056,3389.2,3388.6,2.95104]
[1718391267290,2.95056,3389.2,3388.6,4.38448514]
[1718391267491,0.03247335,3389.1,3388.6,4.38448514]
[1718391267789,0.03247335,3389.1,3388.6,5.41804865]
[1718391268009,2.131,3389.4,3388.8,2.95088]
[1718391268286,1.23093614,3389.8,3388.9,10.28584514]
[1718391268287,0.03332307,3389.0,3388.9,10.28584514]
[1718391268405,2.95004,3389.8,3388.9,10.28584514]
[1718391268406,0.05414076,3389.7,3389.3,2.95044]
[1718391268795,0.03346348,3389.6,3389.3,2.95044]
[1718391269005,0.03346348,3389.6,3389.2,2.95053]
[1718391269901,0.05414076,3389.8,3389.2,2.95053]
[1718391270097,0.03278925,3389.5,3389.2,2.95053]
[1718391270340,0.05414076,3389.7,3389.2,2.95053]
[1718391270548,0.03275179,3389.4,3389.2,2.95053]
[1718391270848,0.05414076,3389.7,3389.2,2.95053]
[1718391271014,0.03271432,3389.3,3389.2,2.95053]
[1718391271229,0.05414076,3389.7,3389.2,2.95053]
[1718391271422,0.03271432,3389.3,3389.2,2.95053]
[1718391271631,0.05414076,3389.7,3389.3,2.95046]
[1718391274437,3.71403614,3390.4,3389.6,2.9502]
[1718391274638,0.05414076,3390.3,3389.8,2.95]
[1718391274842,0.05414076,3390.3,3389.6,4.38362514]
[1718391275041,3.00373076,3390.3,3389.7,2.95004]
[1718391275230,0.05414076,3390.2,3389.7,2.95004]
[1718391275537,0.08719219,3390.2,3389.7,2.95004]
[1718391278537,0.03305143,3390.2,3389.8,4.4424315]
[1718391278737,4.18009614,3390.8,3389.8,4.4424315]
[1718391278738,2.18514076,3390.7,3389.8,4.4424315]
[1718391278939,0.03321056,3390.1,3389.8,4.4424315]
[1718391279239,2.18514076,3390.7,3390.0,2.94978]
[1718391279240,2.94933,3390.6,3390.0,2.94978]
[1718391279445,2.94933,3390.6,3390.0,4.38322514]
[1718391279739,0.08750111,3390.5,3390.0,4.38327514]
[1718391280504,0.03336035,3390.5,3390.1,2.94969]
[1718391280709,3.00340076,3390.7,3390.1,2.94969]